bitfinex/quotes_ETHUSD_20250507
["timestamp","ask_amount","ask_price","bid_price","bid_amount"]
[1746600319291,11.72702086,1829.4,1829.1,0.16682124]
[1746600319491,5.46657624,1829.3,1829.1,0.16682124]
[1746600320764,9.26062544,1829.4,1829.1,0.16682124]
[1746600322599,5.46659005,1829.3,1829.1,0.16682124]
[1746600322897,5.46687076,1829.2,1829.1,0.16682124]
[1746600323103,8.46687076,1829.2,1829.1,0.16682124]
[1746600323265,9.29497076,1829.2,1829.1,0.16682124]
[1746600324467,8.46687076,1829.2,1829.1,0.16682124]
[1746600325488,9.28187076,1829.2,1829.1,0.16682124]
[1746600325684,10.90401274,1829.2,1829.1,0.16682124]
[1746600329926,5.43714198,1829.2,1829.1,0.16682124]
[1746600330124,3.0,1829.2,1829.1,0.16682124]
[1746600332828,8.46687076,1829.2,1829.1,0.16682124]
[1746600335251,3.0,1829.2,1829.1,0.16682124]
[1746600335614,8.46687076,1829.2,1829.1,0.16682124]
[1746600337652,3.0,1829.2,1829.1,0.16682124]
[1746600338346,8.46687076,1829.2,1829.1,0.16682124]
[1746600338545,10.00750662,1829.2,1829.1,0.16682124]
[1746600339252,3.0,1829.2,1829.1,0.16682124]
[1746600339416,8.46687076,1829.2,1829.1,0.16682124]
[1746600339957,3.0,1829.2,1829.1,0.16682124]
[1746600347179,10.92704512,1829.5,1829.1,11.10094375]
[1746600347463,10.92704512,1829.5,1829.2,6.23465181]
[1746600347770,7.48840045,1829.5,1829.3,0.1705416]
[1746600348066,2.02235533,1829.5,1829.3,0.1705416]
[1746600348233,8.4658082,1829.6,1829.3,0.1705416]
[1746600348441,13.93171756,1829.6,1829.3,0.1705416]
[1746600348638,5.46614883,1829.5,1829.3,0.1705416]
[1746600349769,3.0,1829.4,1829.3,0.1705416]
[1746600349974,10.76013648,1829.4,1829.3,0.1705416]
[1746600350269,5.46657191,1829.3,1829.0,0.1379]
[1746600351131,5.46657191,1829.3,1829.1,0.17069145]
[1746600351346,10.71870593,1829.4,1829.1,0.17069145]
[1746600351569,8.46639734,1829.4,1829.1,0.93729145]
[1746600352772,5.46663439,1829.3,1829.1,0.93729145]
[1746600353087,5.46663439,1829.3,1829.1,0.17069145]
[1746600354751,8.46639734,1829.4,1829.1,0.17069145]
[1746600354968,5.46668046,1829.3,1829.1,0.17069145]
[1746600355160,13.93293082,1829.4,1829.1,0.17069145]
[1746600355356,9.94276042,1829.4,1829.1,0.17069145]
[1746600356174,5.46662838,1829.3,1829.1,0.17069145]
[1746600357571,9.94284131,1829.4,1829.1,0.17069145]
[1746600358286,5.46668103,1829.3,1829.1,0.17069145]
[1746600358491,9.94284131,1829.4,1829.1,0.17069145]
[1746600359085,15.40935002,1829.4,1829.1,0.17069145]
[1746600359286,9.94284131,1829.4,1829.1,0.17069145]
[1746600359679,5.4667051,1829.3,1829.1,0.17069145]
[1746600365199,7.00764559,1829.3,1829.1,0.17069145]
[1746600365595,5.46687076,1829.2,1829.1,0.17069145]
[1746600369210,8.46687076,1829.2,1829.1,0.17069145]
[1746600369707,8.46716964,1829.1,1829.0,0.1379]
[1746600375003,9.28106964,1829.1,1829.0,0.1379]
[1746600375203,10.75586368,1829.1,1829.0,0.1379]
[1746600384503,9.94196368,1829.1,1829.0,0.1379]
[1746600384717,9.94196368,1829.1,1829.0,0.3118998]
[1746600385114,10.76946368,1829.1,1829.0,0.3118998]
[1746600387739,10.76946368,1829.1,1829.0,0.1379]
[1746600388243,10.76946368,1829.1,1829.0,0.31206151]
[1746600388410,10.76946368,1829.1,1829.0,0.1379]
[1746600388613,10.76946368,1829.1,1829.0,0.31206151]
[1746600388823,10.76946368,1829.1,1829.0,0.1379]
[1746600389024,10.76946368,1829.1,1829.0,0.31206151]
[1746600389234,10.76946368,1829.1,1829.0,0.1379]
[1746600389716,10.76946368,1829.1,1829.0,0.31206151]
[1746600390545,10.76946368,1829.1,1829.0,0.1379]
[1746600390848,9.94196368,1829.1,1829.0,0.31206151]
[1746600391752,5.46709485,1829.2,1829.0,0.1379]
[1746600391955,5.46709485,1829.2,1829.1,0.17368241]
[1746600392131,8.46709485,1829.2,1829.1,0.17368241]
[1746600392535,5.46709485,1829.2,1829.1,0.17368241]
[1746600392762,8.46709485,1829.2,1829.1,0.17368241]
[1746600393139,5.46709485,1829.2,1829.1,0.97378241]
[1746600394928,5.46675494,1829.3,1829.1,0.97378241]
[1746600397562,8.46647836,1829.4,1829.1,0.97378241]
[1746600397958,5.46661978,1829.3,1829.1,0.97378241]
[1746600398355,13.93297619,1829.4,1829.1,0.97378241]
[1746600398555,8.46645745,1829.4,1829.1,0.97378241]
[1746600398737,5.46682969,1829.3,1829.1,0.97378241]
[1746600398937,5.46687076,1829.2,1829.1,0.97378241]
[1746600403779,5.46676874,1829.3,1829.1,0.97378241]
[1746600405262,5.46687076,1829.2,1829.1,0.97378241]
[1746600405687,5.46687076,1829.2,1829.1,0.17368241]
[1746600406400,6.56023471,1829.2,1829.1,0.17368241]
[1746600409254,12.6435981,1829.2,1829.1,0.17368241]
[1746600409693,10.34973471,1829.2,1829.1,0.17368241]
[1746600412998,16.34173471,1829.2,1829.1,0.17368241]
[1746600413498,8.46716964,1829.1,1829.0,0.1379]
[1746600413656,12.94192346,1829.1,1829.0,0.1379]
[1746600421424,3.0,1829.1,1829.0,0.1379]
[1746600421640,9.12901872,1829.3,1829.0,0.1379]
[1746600421800,9.12901872,1829.3,1829.1,0.7701]
[1746600422004,3.66226997,1829.3,1829.1,0.94426748]
[1746600422325,3.66226997,1829.3,1829.2,6.23697076]
[1746600422533,3.66226997,1829.4,1829.3,0.7701]
[1746600422735,3.66226997,1829.4,1829.3,0.94221802]
[1746600423602,9.12854306,1829.4,1829.3,0.94221802]
[1746600426551,5.46613615,1829.5,1829.3,0.94221802]
[1746600427742,5.46586208,1829.6,1829.3,0.94221802]
[1746600427950,8.46599244,1829.5,1829.3,0.94221802]
[1746600429428,3.0,1829.5,1829.3,0.94221802]
[1746600429627,3.0,1829.5,1829.3,1.58311348]
[1746600430045,3.0,1829.5,1829.3,7.04966168]
[1746600430437,2.29386339,1829.8,1829.4,6.21609554]
[1746600430438,5.46518206,1829.8,1829.4,6.21609554]
[1746600430648,5.46537894,1829.7,1829.4,6.21609554]
[1746600430863,5.46537894,1829.7,1829.5,0.16796737]
[1746600431073,5.46526432,1829.8,1829.5,0.16796737]
[1746600431363,8.46526432,1829.8,1829.6,0.8154]
[1746600431570,5.46469681,1830.0,1829.7,0.16700975]
[1746600431866,3.0,1829.9,1829.8,0.8154]
[1746600432373,5.46469681,1830.0,1829.8,0.98193102]
[1746600432670,3.0,1829.9,1829.8,0.98193102]
[1746600434070,8.46477949,1829.9,1829.8,0.16653102]
[1746600434381,5.46534281,1829.8,1829.6,0.7674]
[1746600434532,5.46534281,1829.8,1829.7,0.16700975]
[1746600441843,8.46497509,1829.9,1829.7,0.16700975]
[1746600442043,8.46497509,1829.9,1829.8,0.7931]
[1746600442478,8.46497509,1829.9,1829.8,0.95963102]
[1746600446344,8.46497509,1829.9,1829.8,0.16653102]
[1746600446682,5.46537683,1829.7,1829.6,0.7763]
[1746600447386,5.4652722,1829.8,1829.6,0.7763]
[1746600448688,13.93004519,1829.9,1829.6,0.7763]
[1746600448979,8.46497509,1829.9,1829.6,0.7763]
[1746600450314,13.93004678,1829.9,1829.6,0.7763]
[1746600450598,5.46512955,1829.8,1829.6,0.7763]
[1746600451582,8.46497509,1829.9,1829.6,0.7763]
[1746600451745,13.92999695,1829.9,1829.6,0.7763]
[1746600451947,3.0,1829.9,1829.6,0.62421611]
[1746600452174,3.0,1829.9,1829.7,0.7501]
[1746600452480,8.46482473,1829.9,1829.7,0.7501]
[1746600453149,5.46507815,1829.8,1829.7,0.7501]
[1746600454075,5.46507815,1829.8,1829.5,0.7732]
[1746600454281,5.46543208,1829.7,1829.5,0.7732]
[1746600454450,5.46520136,1829.8,1829.5,0.7732]
[1746600454964,8.46491157,1829.9,1829.5,7.46696905]
[1746600456094,13.9299495,1829.9,1829.5,7.46696905]
[1746600456293,8.46491157,1829.9,1829.6,0.16453959]
[1746600457594,5.46517378,1829.8,1829.6,0.16453959]
[1746600458296,8.46498641,1829.9,1829.6,0.16453959]
[1746600458464,13.93004268,1829.9,1829.6,0.16453959]
[1746600458794,8.46498641,1829.9,1829.6,0.16453959]
[1746600458995,5.46508788,1829.8,1829.6,0.16453959]
[1746600460289,8.46499654,1829.9,1829.6,0.16453959]
[1746600460797,0.7532621,1830.6,1829.7,2.29386339]
[1746600461004,5.46297478,1830.6,1830.0,0.7556]
[1746600461200,5.4629701,1830.6,1830.2,0.7556]
[1746600461408,5.46315309,1830.5,1830.3,0.16094685]
[1746600462195,5.46287105,1830.6,1830.3,0.16094685]
[1746600462376,3.0,1830.5,1830.3,0.16094685]
[1746600462700,3.0,1830.5,1830.3,0.79897406]
[1746600463801,5.46263254,1830.7,1830.4,0.7629]
[1746600464005,10.92529635,1830.7,1830.5,0.15801157]
[1746600464178,5.46268982,1830.6,1830.5,0.15801157]
[1746600465105,5.4626176,1830.7,1830.5,0.15801157]
[1746600465271,3.0,1830.6,1830.5,0.15801157]
[1746600465965,5.46221491,1830.8,1830.5,0.15801157]
[1746600466171,8.46221491,1830.8,1830.5,0.15801157]
[1746600466506,5.46241773,1830.7,1830.5,0.79642014]
[1746600466673,5.46241773,1830.7,1830.5,0.15801157]
[1746600468000,3.0,1830.8,1830.5,0.15801157]
[1746600468406,5.46247779,1830.7,1830.5,0.15801157]
[1746600469710,8.46232321,1830.8,1830.5,0.15801157]
[1746600470206,13.92468775,1830.8,1830.5,0.15801157]
[1746600470408,13.92468775,1830.8,1830.5,0.7964296]
[1746600470773,8.46232321,1830.8,1830.5,0.7964296]
[1746600471300,13.924652,1830.8,1830.5,0.7964296]
[1746600472107,5.4624884,1830.7,1830.5,0.7964296]
[1746600472309,5.4624884,1830.7,1830.5,0.15801157]
[1746600472810,8.46228367,1830.8,1830.6,0.1412167]
[1746600473102,8.46228367,1830.8,1830.4,5.46319437]
[1746600473307,8.46228367,1830.8,1830.7,0.14073844]
[1746600473506,8.46228367,1830.8,1830.4,5.46319437]
[1746600473709,8.46228367,1830.8,1830.7,0.14073844]
[1746600474187,8.46228367,1830.8,1830.5,0.54631944]
[1746600474388,8.46228367,1830.8,1830.6,0.1412167]
[1746600475619,8.46228367,1830.8,1830.4,5.46307543]
[1746600475778,8.46228367,1830.8,1830.7,0.14073844]
[1746600475978,8.46228367,1830.8,1830.5,0.8197]
[1746600476178,8.46228367,1830.8,1830.6,0.13980414]
[1746600479013,3.0,1830.8,1830.6,0.13980414]
[1746600479217,3.0,1830.9,1830.6,6.29922267]
[1746600479385,3.0,1831.0,1830.8,0.8251]
[1746600479586,3.0,1831.0,1830.9,0.13836951]
[1746600479811,5.46119818,1831.1,1830.8,0.8251]
[1746600480010,5.46119818,1831.1,1830.9,0.13836951]
[1746600480201,6.00762304,1831.0,1830.8,0.8251]
[1746600480401,5.46150322,1831.0,1830.8,0.8251]
[1746600482335,8.46140378,1831.1,1830.8,0.8251]
[1746600483995,3.0,1831.1,1830.8,6.34177895]
[1746600484202,3.0,1831.1,1830.8,6.34162959]
[1746600484400,5.46106659,1831.2,1830.8,6.34161062]
[1746600484602,10.8977578,1831.3,1830.9,5.46153852]
[1746600484603,10.89770527,1831.3,1830.9,5.46153852]
[1746600484985,10.89770527,1831.3,1831.0,6.23009623]
[1746600485553,10.89770527,1831.3,1831.0,0.7686]
[1746600485791,5.46070527,1831.3,1831.0,0.7686]
[1746600486258,5.46070527,1831.3,1831.1,0.13624316]
[1746600486422,6.63572309,1831.3,1831.1,0.13624316]
[1746600487654,12.09659143,1831.3,1831.1,0.13624316]
[1746600487949,6.63572309,1831.3,1831.1,0.13624316]
[1746600488153,5.46070527,1831.3,1831.1,0.13624316]
[1746600489058,5.46039483,1831.4,1831.1,0.13624316]
[1746600489267,5.46074368,1831.3,1831.1,0.13624316]
[1746600489916,6.27664368,1831.3,1831.1,0.13624316]
[1746600490120,6.27664368,1831.3,1830.9,5.46159256]
[1746600490316,0.8159,1831.3,1831.0,5.46135895]
[1746600490517,0.8159,1831.3,1831.0,5.59691032]
[1746600491057,10.92098605,1831.4,1831.0,5.59691032]
[1746600491259,12.24247099,1831.4,1831.0,5.59691032]
[1746600492563,6.7819368,1831.4,1831.0,5.59691032]
[1746600493463,6.7819368,1831.4,1831.0,0.13555137]
[1746600493764,6.27692431,1831.2,1831.0,0.13555137]
[1746600493941,11.73806472,1831.2,1830.8,12.2591013]
[1746600494132,12.91187119,1831.2,1830.9,0.13469831]
[1746600494327,12.91187119,1831.2,1830.8,12.2591013]
[1746600494535,12.91187119,1831.2,1830.9,0.13469831]
[1746600494737,7.45073078,1831.2,1830.8,12.2591013]
[1746600494936,7.45073078,1831.2,1830.9,0.13469831]
[1746600495260,7.45073078,1831.2,1830.8,12.2591013]
[1746600495461,7.45073078,1831.2,1831.0,0.13422021]
[1746600495636,0.74507308,1831.1,1830.9,0.13469831]
[1746600495976,7.45073078,1831.2,1831.0,0.13422021]
[1746600496172,7.45073078,1831.2,1830.8,6.2191013]
[1746600496331,7.45073078,1831.2,1830.9,0.13469831]
[1746600496674,7.45073078,1831.2,1830.8,6.2191013]
[1746600496877,12.91190439,1831.2,1831.0,0.13422021]
[1746600497086,1.29119044,1831.1,1830.9,0.13469831]
[1746600497380,11.73806169,1831.2,1831.0,0.13422021]
[1746600497587,6.27692431,1831.2,1830.8,6.2191013]
[1746600497883,6.27692431,1831.2,1830.9,0.13469831]
[1746600498089,5.46130069,1831.1,1830.9,0.13469831]
[1746600498245,5.46130069,1831.1,1830.8,5.46209168]
[1746600498577,5.46130069,1831.1,1830.9,0.13469831]
[1746600498779,5.46130069,1831.1,1830.8,5.46209168]
[1746600499076,5.46130069,1831.1,1830.9,0.13469831]
[1746600499471,5.46130069,1831.1,1830.8,5.46209168]
[1746600499678,6.27692431,1831.2,1831.0,0.13422021]
[1746600499867,0.62769243,1831.1,1830.9,0.13469831]
[1746600500055,6.27692431,1831.2,1831.1,0.13374215]
[1746600500260,6.27692431,1831.2,1831.0,0.13422021]
[1746600500562,6.27692431,1831.2,1831.1,0.13374215]
[1746600500755,11.73810904,1831.2,1830.8,5.46209168]
[1746600500955,11.73810904,1831.2,1830.9,0.13469831]
[1746600501151,12.91191994,1831.2,1830.8,5.46209168]
[1746600501403,7.45073521,1831.2,1830.9,0.13469831]
[1746600501551,7.45073521,1831.2,1830.8,5.46209168]
[1746600501754,7.45073521,1831.2,1830.9,0.13469831]
[1746600501954,7.45073521,1831.2,1830.8,5.46209168]
[1746600502191,7.45073521,1831.2,1830.9,0.13469831]
[1746600502356,7.45073521,1831.2,1830.8,5.46209168]
[1746600502696,7.45062991,1831.2,1830.9,0.13469831]
[1746600502904,7.45062991,1831.2,1830.9,5.59637202]
[1746600503105,7.45062991,1831.2,1830.9,5.46167371]
[1746600503275,7.45062991,1831.2,1831.0,0.13422021]
[1746600503591,7.45062991,1831.2,1830.8,5.46188749]
[1746600503779,6.27681901,1831.2,1830.9,0.13469831]
[1746600503981,6.27681901,1831.2,1830.8,5.46188749]
[1746600504192,6.27681901,1831.2,1830.9,5.59650923]
[1746600504372,3.0,1831.3,1831.0,6.21670622]
[1746600504596,8.46060531,1831.3,1831.1,0.13378249]
[1746600506615,6.29099995,1831.2,1831.1,0.13378249]
[1746600506832,6.29099995,1831.2,1830.8,6.2172052]
[1746600507113,5.46126588,1831.1,1830.8,0.7553]
[1746600507284,5.46126588,1831.1,1830.7,5.46221741]
[1746600507608,5.46126588,1831.1,1830.7,5.46220636]
[1746600507817,5.46126588,1831.1,1830.7,10.9243857]
[1746600508508,5.46126588,1831.1,1830.7,5.46229359]
[1746600508719,5.46161849,1831.0,1830.6,12.29233655]
[1746600508926,5.46219216,1830.8,1830.6,6.04]
[1746600509130,5.46219216,1830.8,1830.4,11.73174284]
[1746600509283,6.27457799,1830.9,1830.5,5.46286175]
[1746600509632,0.8126,1830.9,1830.5,5.46278825]
[1746600509790,0.8126,1830.9,1830.6,5.46258079]
[1746600510517,0.80943121,1830.9,1830.6,5.46258079]
[1746600510735,6.27123037,1830.9,1830.6,5.46258079]
[1746600511404,0.80943121,1830.9,1830.6,5.46258079]
[1746600512412,5.46135819,1831.1,1830.7,6.25226806]
[1746600513305,5.46135819,1831.1,1830.7,6.25221433]
[1746600516034,5.46135819,1831.1,1830.8,0.1256816]
[1746600518134,10.92279987,1831.1,1830.8,0.1256816]
[1746600518302,10.9228015,1831.1,1830.8,0.1256816]
[1746600518836,5.46135819,1831.1,1830.8,0.1256816]
[1746600519233,3.0,1831.1,1830.8,5.58776633]
[1746600519534,8.46129045,1831.1,1830.9,0.7809]
[1746600520014,8.46129045,1831.1,1831.0,0.125048]
[1746600522948,3.0,1831.1,1831.0,0.125048]
[1746600524115,8.46119818,1831.1,1831.0,0.125048]
[1746600525847,5.4610345,1831.2,1831.0,0.125048]
[1746600531274,6.55321449,1831.2,1831.0,0.125048]
[1746600533180,5.46119818,1831.1,1831.0,0.125048]
[1746600533476,5.46119818,1831.1,1830.8,5.46200437]
[1746600533775,5.46119818,1831.1,1831.0,0.12319269]
[1746600533947,5.46119818,1831.1,1830.9,0.1236708]
[1746600534152,5.46119818,1831.1,1831.0,0.12319269]
[1746600534349,6.66263945,1831.1,1831.0,0.12319269]
[1746600534559,6.66263945,1831.1,1830.8,5.46200437]
[1746600534762,5.46119818,1831.1,1831.0,0.12319269]
[1746600535243,5.46119818,1831.1,1830.8,5.46200437]
[1746600535444,5.46119818,1831.1,1830.9,0.1236708]
[1746600535769,5.46119818,1831.1,1830.8,5.46200437]
[1746600535960,5.46119818,1831.1,1831.0,0.12319269]
[1746600536168,6.55342145,1831.1,1830.9,0.1236708]
[1746600536354,5.46119818,1831.1,1831.0,0.12319269]
[1746600536677,5.46119818,1831.1,1830.8,5.46200437]
[1746600536973,5.46119818,1831.1,1831.0,0.12319269]
[1746600537174,5.46119818,1831.1,1830.9,0.1236708]
[1746600537377,5.46119818,1831.1,1831.0,0.12319269]
[1746600537573,6.55342145,1831.1,1830.8,5.46209231]
[1746600537756,5.46119818,1831.1,1830.8,5.46209231]
[1746600537952,6.22449818,1831.1,1830.9,0.1236708]
[1746600538140,5.46149645,1831.0,1830.7,0.7863]
[1746600538341,5.46188263,1830.9,1830.7,0.7863]
[1746600538541,5.46178482,1831.0,1830.8,0.12414896]
[1746600538742,6.22470026,1831.1,1830.8,0.12414896]
[1746600538942,12.8547328,1831.1,1830.8,0.12414896]
[1746600539588,5.46150426,1831.0,1830.8,0.12414896]
[1746600540285,7.39327794,1831.1,1830.8,0.12414896]
[1746600540787,7.39327794,1831.1,1830.8,5.5861515]
[1746600540988,6.22470026,1831.1,1830.8,5.5861515]
[1746600541785,5.46140026,1831.1,1830.8,5.5861515]
[1746600542502,5.46140026,1831.1,1830.8,0.12414896]
[1746600548314,5.46140026,1831.1,1830.8,5.58622936]
[1746600549117,6.26002023,1831.2,1830.8,5.58622936]
[1746600549292,13.73815911,1831.2,1830.8,5.58622936]
[1746600549693,2.01697335,1831.2,1830.9,5.46168352]
[1746600549995,6.22637927,1831.5,1831.0,6.4258159]
[1746600550199,8.46039811,1831.4,1831.0,6.37113636]
[1746600550633,13.92095226,1831.4,1831.0,6.37113636]
[1746600550780,6.8527466,1831.3,1831.0,0.90983793]
[1746600551714,6.24200251,1831.2,1831.0,0.12383793]
[1746600551917,5.46119818,1831.1,1831.0,0.12383793]
[1746600552103,5.46172125,1831.0,1830.7,0.8044]
[1746600552415,6.55401319,1831.0,1830.7,0.8044]
[1746600552619,5.46181517,1830.9,1830.5,11.5028582]
[1746600552824,6.25749474,1830.9,1830.5,0.8044]
[1746600553124,6.25749474,1830.9,1830.4,3.67475645]
[1746600553125,8.46221244,1830.8,1830.4,3.67475645]
[1746600553334,8.46209307,1830.8,1830.4,9.13802059]
[1746600554093,5.46241799,1830.7,1830.4,9.13802059]
[1746600554299,5.46241799,1830.7,1830.4,3.67475645]
[1746600555539,6.24144684,1830.6,1830.4,3.67475645]
[1746600555700,11.70443233,1830.6,1830.4,3.67475645]
[1746600555901,11.70443233,1830.6,1830.3,3.67475645]
[1746600556437,6.24144684,1830.6,1830.3,3.67475645]
[1746600556928,11.70437941,1830.6,1830.3,3.67475645]
[1746600557130,6.24144684,1830.6,1830.3,3.67475645]
[1746600557533,5.46304056,1830.5,1830.3,3.67475645]
[1746600558538,6.24139168,1830.6,1830.3,3.67475645]
[1746600558938,0.7787,1830.6,1830.3,9.1383268]
[1746600559136,8.46257801,1830.7,1830.3,16.8829145]
[1746600559438,8.46243621,1830.7,1830.4,5.46322718]
[1746600559642,3.0,1830.7,1830.3,9.95906029]
[1746600559840,3.0,1830.7,1830.5,5.46282692]
[1746600560338,7.33684052,1831.0,1830.5,0.8142]
[1746600560543,3.0,1830.9,1830.6,7.75652145]
[1746600560720,3.0,1830.9,1830.7,0.7964]
[1746600561236,3.0,1830.9,1830.8,0.11615895]
[1746600563646,8.46179474,1830.9,1830.8,0.11615895]
[1746600563843,10.77456827,1830.9,1830.8,0.11615895]
[1746600564147,5.46210509,1830.8,1830.4,6.25953601]
[1746600567353,5.46240314,1830.7,1830.4,6.25953601]
[1746600567552,9.2731699,1830.9,1830.4,6.25953601]
[1746600567756,5.46227128,1830.8,1830.4,6.25953601]
[1746600567966,5.46227128,1830.8,1830.4,7.43183231]
[1746600569153,5.4624693,1830.7,1830.4,7.43183231]
[1746600569858,5.4624693,1830.7,1830.4,1.9686963]
[1746600570026,5.46260301,1830.7,1830.3,5.46357426]
[1746600570429,0.796,1830.6,1830.2,0.7977]
[1746600570631,5.46313327,1830.5,1830.2,5.46388095]
[1746600571551,6.25883165,1830.6,1830.2,5.46388095]
[1746600571738,6.25883165,1830.6,1830.2,5.46365809]
[1746600572057,6.25883165,1830.6,1830.2,10.92736477]
[1746600572359,6.25883165,1830.6,1830.2,5.46365809]
[1746600573555,6.25883165,1830.6,1830.2,10.92733189]
[1746600573964,6.25883165,1830.6,1830.2,10.92735756]
[1746600574159,6.25883165,1830.6,1830.2,5.46365809]
[1746600575169,11.72177192,1830.6,1830.2,5.46365809]
[1746600575366,5.46305169,1830.5,1830.2,5.46365809]
[1746600575667,6.25883165,1830.6,1830.2,5.46365809]
[1746600576070,6.25883165,1830.6,1830.3,0.12137057]
[1746600576271,7.43096903,1830.6,1830.3,0.12137057]
[1746600578041,5.46254216,1830.7,1830.4,0.7943]
[1746600578259,5.46254216,1830.7,1830.5,0.12041378]
[1746600578440,10.925199,1830.7,1830.5,0.12041378]
[1746600578968,5.46254216,1830.7,1830.5,0.12041378]
[1746600579750,10.92520237,1830.7,1830.5,0.12041378]
[1746600579953,6.6370324,1830.7,1830.5,0.12041378]
[1746600581282,3.0,1830.7,1830.5,5.58333762]
[1746600582583,3.0,1830.9,1830.6,0.8138]
[1746600582752,8.46186942,1830.9,1830.6,0.8138]
[1746600582951,8.46186942,1830.9,1830.7,0.1194572]
[1746600583179,8.46209307,1830.8,1830.7,0.1194572]
[1746600583379,8.46209307,1830.8,1830.6,0.8138]
[1746600583573,8.46209307,1830.8,1830.7,0.1194572]
[1746600583985,8.46209307,1830.8,1830.6,0.8138]
[1746600584385,8.46209307,1830.8,1830.7,0.1194572]
[1746600584880,8.46209307,1830.8,1830.6,0.8138]
[1746600585087,8.46209307,1830.8,1830.7,0.1194572]
[1746600585387,3.0,1830.8,1830.6,0.8138]
[1746600585756,3.0,1830.8,1830.7,0.1194572]
[1746600586293,3.0,1830.8,1830.7,0.11861104]
[1746600586465,3.0,1830.8,1830.6,0.8138]
[1746600586793,3.0,1830.8,1830.7,0.11861104]
[1746600587189,3.0,1830.8,1830.6,0.8138]
[1746600587389,3.0,1830.8,1830.7,0.11861104]
[1746600587589,3.0,1830.8,1830.6,0.8138]
[1746600587891,3.0,1830.8,1830.7,0.11861104]
[1746600588193,8.46209307,1830.8,1830.6,0.8138]
[1746600588368,8.46209307,1830.8,1830.7,0.11861104]
[1746600588567,8.46209307,1830.8,1830.6,0.8138]
[1746600588765,8.46209307,1830.8,1830.7,0.11861104]
[1746600589072,3.0,1830.8,1830.6,0.8138]
[1746600589281,8.46209307,1830.8,1830.7,0.11861104]
[1746600589473,3.0,1830.8,1830.7,0.11861104]
[1746600589858,3.0,1830.8,1830.6,0.8138]
[1746600590391,3.0,1830.8,1830.7,0.11861104]
[1746600590589,3.0,1830.8,1830.6,0.8138]
[1746600590895,3.0,1830.8,1830.7,0.11861104]
[1746600591088,3.0,1830.8,1830.6,0.8138]
[1746600591458,10.90042598,1831.1,1830.7,5.58088806]
[1746600591778,3.0,1831.1,1830.8,6.24968711]
[1746600591975,8.4612038,1831.1,1830.8,6.24968711]
[1746600592160,6.21785379,1831.2,1830.9,0.1166876]
[1746600592367,6.21785379,1831.2,1830.8,6.24960294]
[1746600592588,6.21785379,1831.2,1831.0,0.1162095]
[1746600592792,6.21785379,1831.2,1830.8,6.24950635]
[1746600592957,9.21785379,1831.2,1831.1,0.11536886]
[1746600593286,14.67899474,1831.2,1830.8,6.24950635]
[1746600593486,9.21785379,1831.2,1831.1,0.11536886]
[1746600593667,9.21785379,1831.2,1830.8,6.24950635]
[1746600593852,9.21785379,1831.2,1830.8,7.42068336]
[1746600594289,9.21785379,1831.2,1830.9,0.11632502]
[1746600594591,9.21785379,1831.2,1830.8,6.24950635]
[1746600594796,9.21785379,1831.2,1831.0,0.11584691]
[1746600594992,8.46105379,1831.2,1830.8,6.24950635]
[1746600595195,0.7693,1831.3,1831.1,0.11536886]
[1746600595363,3.0,1831.3,1831.0,5.46137415]
[1746600595564,3.0,1831.3,1831.2,0.11489085]
[1746600596063,8.46060175,1831.3,1831.2,0.11489085]
[1746600596259,8.46060175,1831.3,1831.0,6.21467415]
[1746600596464,8.46060175,1831.3,1831.1,0.11536886]
[1746600598308,5.46089995,1831.2,1831.1,0.11536886]
[1746600598680,5.46089995,1831.2,1830.9,0.8095]
[1746600598880,5.46089995,1831.2,1831.1,0.11367702]
[1746600599203,5.46089995,1831.2,1831.0,0.11415508]
[1746600599365,5.46089995,1831.2,1830.9,0.8095]
[1746600599674,5.46089995,1831.2,1831.1,0.11367702]
[1746600599872,5.46089995,1831.2,1831.0,0.11415508]
[1746600600089,5.46089995,1831.2,1831.1,0.11367702]
[1746600600396,5.46089995,1831.2,1830.9,0.8095]
[1746600600564,5.46089995,1831.2,1831.1,0.11367702]
[1746600600764,5.46089995,1831.2,1830.9,0.8095]
[1746600600986,5.46089995,1831.2,1831.1,0.11367702]
[1746600601205,5.46089995,1831.2,1830.9,0.8095]
[1746600601387,9.21499286,1831.3,1831.1,0.11367702]
[1746600601695,9.21499286,1831.3,1831.2,0.11319902]
[1746600602393,9.21499286,1831.3,1830.9,6.27114911]
[1746600602618,5.46052476,1831.4,1831.2,0.11319902]
[1746600602904,5.46052476,1831.4,1831.0,5.46139078]
[1746600603107,8.46052476,1831.4,1831.3,0.11272107]
[1746600603307,8.46052476,1831.4,1831.1,0.7649]
[1746600603463,8.46052476,1831.4,1831.3,0.11272107]
[1746600603865,5.46052476,1831.4,1831.3,0.11272107]
[1746600604066,6.25546532,1831.5,1831.2,5.46086057]
[1746600604282,8.46001494,1831.5,1831.3,0.11272107]
[1746600604473,3.0,1831.5,1831.3,0.11272107]
[1746600607579,8.46002964,1831.5,1831.3,0.11272107]
[1746600608412,13.92029696,1831.5,1831.3,0.11272107]
[1746600608607,8.54176698,1831.4,1831.3,0.11272107]
[1746600608784,10.24194664,1831.4,1831.3,0.11272107]
[1746600608986,5.46089042,1831.3,1830.9,6.27508998]
[1746600609186,10.92175493,1831.3,1830.9,6.27508998]
[1746600609600,5.46086451,1831.3,1830.9,6.27508998]
[1746600609816,5.46086451,1831.3,1830.9,6.27492413]
[1746600610115,5.46086451,1831.3,1831.0,0.62749241]
[1746600610296,10.92169744,1831.3,1831.0,0.62749241]
[1746600610497,5.46083293,1831.3,1831.0,0.62749241]
[1746600610834,5.46083224,1831.3,1831.0,0.62749241]
[1746600611530,5.46083224,1831.3,1831.0,0.62432361]
[1746600611718,5.46083224,1831.3,1830.9,6.27492049]
[1746600612330,5.461023,1831.2,1830.8,5.4620674]
[1746600612500,5.461023,1831.2,1830.9,5.46175816]
[1746600615802,5.461023,1831.2,1830.8,5.4618483]
[1746600616738,5.461023,1831.2,1830.8,10.92376289]
[1746600616897,5.461023,1831.2,1830.8,12.63761918]
[1746600617101,6.24806439,1831.4,1831.0,5.4613869]
[1746600617604,5.46062852,1831.3,1830.9,6.29398343]
[1746600618206,5.46062852,1831.3,1830.9,11.75558422]
[1746600618410,5.46062852,1831.3,1831.0,5.46138313]
[1746600618618,5.46062852,1831.3,1830.9,6.29378448]
[1746600618818,5.46062852,1831.3,1831.0,5.46149632]
[1746600621140,5.46062852,1831.3,1831.1,0.13360938]
[1746600621735,6.24792999,1831.4,1831.1,0.13360938]
[1746600623741,11.70847647,1831.4,1831.1,0.13360938]
[1746600624040,5.46063059,1831.3,1831.1,0.13360938]
[1746600624419,6.24792999,1831.4,1831.1,0.13360938]
[1746600624749,6.24811503,1831.4,1831.1,0.13360938]
[1746600625448,5.46064064,1831.3,1831.1,0.13360938]
[1746600625743,5.46089995,1831.2,1831.1,0.13360938]
[1746600625948,7.33215401,1831.2,1830.8,5.46196623]